[Event "WYCC 2018 G16"]
[Site "Halkidiki"]
[Date "2018.10.21"]
[Round "3"]
[White "Ge, Eva"]
[Black "Sanskriti Goyal"]
[Result "0-1"]
[ECO "C14"]
[WhiteElo "1701"]
[BlackElo "1971"]
[Annotator "NA"]
[PlyCount "58"]
[EventDate "2018.10.20"]
[EventType "swiss"]
[EventCountry "GRE"]
[SourceTitle "playchess.com"]
[Source "ChessBase"]
[SourceQuality "1"]
[TimeControl "40/5400+30:1800+30"]

1. e4 {[%emt 0:00:00]} e6 {[%emt 0:00:02]} 2. d4 {[%emt 0:00:00]} d5 {[%emt 0:00:09]} 3. Nc3 {[%emt 0:00:00]} Nf6 {[%emt 0:00:06]} 4. Bg5 {[%emt 0:00:00]} Be7 {[%emt 0:00:06]} 5. e5 {[%emt 0:00:00]} Nfd7 {[%emt 0:00:04]} 6. Bxe7 {[%emt 0:00:00]} Qxe7 {[%emt 0:00:04]} 7. f4 {[%emt 0:00:00]} O-O {[%emt 0:00:14]} 8. Nf3 {[%emt 0:00:00]} c5 {[%emt 0:00:04]} 9. dxc5 {[%emt 0:00:00]} Nxc5 {[%emt 0:00:27]} 10. Bd3 {[%emt 0:00:07]} Nc6 {[%emt 0:08:10]} 11. Qd2 {[%emt 0:02:28]} a6 {[%emt 0:02:12]} 12. O-O {[%emt 0:01:55]} f6 {[%emt 0:02:59]} 13. exf6 {[%emt 0:00:34]} Qxf6 {[%emt 0:00:15]} 14. g3 {[%emt 0:00:19]} Bd7 {[%emt 0:05:46]} 15. a3 {[%emt 0:03:05]} Be8 {[%emt 0:06:46]} 16. Rae1 {[%emt 0:08:05]} Nxd3 {[%emt 0:04:59]} 17. Qxd3 {[%emt 0:00:19]} Bg6 {[%emt 0:00:14]} 18. Qd2 {[%emt 0:08:52]} Bf5 {[%emt 0:05:52]} 19. Ne5 {[%emt 0:21:15]} Nxe5 {[%emt 0:01:50]} 20. Rxe5 {[%emt 0:00:42]} Rac8 {[%emt 0:03:22]} 21. Rc1 {[%emt 0:05:24]} Qg6 {[%emt 0:05:05]} 22. Ne2 {[%emt 0:32:59]} Rxc2 {[%emt 0:04:15]} 23. Rxc2 {[%emt 0:00:09]} Bxc2 {[%emt 0:00:02]} 24. Nd4 {[%emt 0:04:10]} Bf5 {[%emt 0:00:43]} 25. Qc3 {[%emt 0:03:19]} Bh3 {[%emt 0:09:36]} 26. Nf3 {[%emt 0:03:48]} Rxf4 {[%emt 0:04:06]} 27. Kf2 {[%emt 0:04:15]} Rf8 {[%emt 0:02:02]} 28. Ke3 {[%emt 0:01:34]} Bg4 {[%emt 0:02:38]} 29. Ke2 {[%emt 0:00:38]} Rxf3 {[%emt 0:00:15]} 0-1

[Event "WYCC 2018 G16"]
[Site "Halkidiki"]
[Date "2018.10.21"]
[Round "3"]
[White "Golsta, Ramona"]
[Black "Rudzinska, Michalina"]
[Result "1/2-1/2"]
[ECO "A43"]
[WhiteElo "1681"]
[BlackElo "2073"]
[Annotator "NA"]
[PlyCount "130"]
[EventDate "2018.10.20"]
[EventType "swiss"]
[EventCountry "GRE"]
[SourceTitle "playchess.com"]
[Source "ChessBase"]
[SourceQuality "1"]
[TimeControl "40/5400+30:1800+30"]

1. d4 {[%emt 0:00:00]} c5 {[%emt 0:00:00]} 2. d5 {[%emt 0:00:10]} Nf6 {[%emt 0:00:00]} 3. Nc3 {[%emt 0:02:53]} d6 {[%emt 0:00:27]} 4. e4 {[%emt 0:05:52]} g6 {[%emt 0:00:13]} 5. Nf3 {[%emt 0:12:03]} Bg7 {[%emt 0:00:42]} 6. Be2 {[%emt 0:00:34]} O-O {[%emt 0:00:49]} 7. O-O {[%emt 0:01:10]} Na6 {[%emt 0:06:41]} 8. Bg5 {[%emt 0:01:57]} h6 {[%emt 0:01:23]} 9. Bf4 {[%emt 0:03:03]} Nc7 {[%emt 0:00:58]} 10. h3 {[%emt 0:01:11]} b5 {[%emt 0:02:19]} 11. Nd2 {[%emt 0:14:50]} b4 {[%emt 0:02:06]} 12. Nb5 {[%emt 0:05:38]} Nxb5 {[%emt 0:16:54]} 13. Bxb5 {[%emt 0:00:27]} Nd7 {[%emt 0:09:27]} 14. Rb1 {[%emt 0:04:07]} f5 {[%emt 0:04:07]} 15. exf5 {[%emt 0:06:52]} Rxf5 {[%emt 0:00:14]} 16. Bg3 {[%emt 0:00:07]} Kh7 {[%emt 0:01:49]} 17. Bd3 {[%emt 0:02:10]} Rf8 {[%emt 0:02:49]} 18. Nf3 {[%emt 0:05:54]} Ne5 {[%emt 0:10:21]} 19. Nxe5 {[%emt 0:02:09]} dxe5 {[%emt 0:01:55]} 20. Re1 {[%emt 0:00:55]} Bb7 {[%emt 0:08:28]} 21. Qh5 {[%emt 0:05:11]} Qd6 {[%emt 0:00:35]} 22. Bxe5 {[%emt 0:04:01]} Bxe5 {[%emt 0:00:09]} 23. Rxe5 {[%emt 0:00:08]} Kg7 {[%emt 0:04:36]} 24. Qe2 {[%emt 0:01:16]} Bxd5 {[%emt 0:00:24]} 25. Rxe7+ {[%emt 0:01:52]} Rf7 {[%emt 0:00:09]} 26. Qe5+ {[%emt 0:04:08]} Qxe5 {[%emt 0:00:11]} 27. Rxe5 {[%emt 0:00:02]} Rd8 {[%emt 0:01:18]} 28. Rbe1 {[%emt 0:01:13]} c4 {[%emt 0:01:25]} 29. Rxd5 {[%emt 0:00:53]} Rxd5 {[%emt 0:00:05]} 30. Bxc4 {[%emt 0:00:07]} Rd2 {[%emt 0:02:32]} 31. Bxf7 {[%emt 0:00:12]} Kxf7 {[%emt 0:00:03]} 32. Re4 {[%emt 0:01:12]} a5 {[%emt 0:00:22]} 33. Rc4 {[%emt 0:00:21]} Rd1+ {[%emt 0:00:08]} 34. Kh2 {[%emt 0:00:08]} Ra1 {[%emt 0:01:12]} 35. a3 {[%emt 0:05:46]} bxa3 {[%emt 0:00:15]} 36. bxa3 {[%emt 0:00:07]} Rxa3 {[%emt 0:00:05]} 37. Rc8 {[%emt 0:01:54]} Ra1 {[%emt 0:02:52]} 38. Ra8 {[%emt 0:01:11]} Rc1 {[%emt 0:02:22]} 39. Rxa5 {[%emt 0:00:38]} Rxc2 {[%emt 0:00:06]} 40. Kg3 {[%emt 0:00:00]} Rc6 {[%emt 0:00:00]} 41. h4 {[%emt 0:02:52]} h5 {[%emt 0:03:59]} 42. Ra4 {[%emt 0:04:01]} Rb6 {[%emt 0:02:14]} 43. Kh3 {[%emt 0:02:39]} Kg7 {[%emt 0:02:45]} 44. Ra3 {[%emt 0:00:42]} Rc6 {[%emt 0:02:07]} 45. g4 {[%emt 0:00:35]} hxg4+ {[%emt 0:00:19]} 46. Kxg4 {[%emt 0:00:01]} Rc4+ {[%emt 0:03:15]} 47. f4 {[%emt 0:00:16]} Rc1 {[%emt 0:00:40]} 48. Rg3 {[%emt 0:00:48]} Kh6 {[%emt 0:01:27]} 49. Rg2 {[%emt 0:01:16]} Ra1 {[%emt 0:02:46]} 50. Kf3 {[%emt 0:00:20]} Ra3+ {[%emt 0:00:39]} 51. Ke4 {[%emt 0:02:08]} Ra4+ {[%emt 0:00:21]} 52. Kf3 {[%emt 0:00:44]} Ra3+ {[%emt 0:00:06]} 53. Kg4 {[%emt 0:00:08]} Ra1 {[%emt 0:00:47]} 54. Rd2 {[%emt 0:02:24]} Rg1+ {[%emt 0:00:36]} 55. Kh3 {[%emt 0:00:31]} Rh1+ {[%emt 0:00:40]} 56. Kg3 {[%emt 0:00:35]} Rg1+ {[%emt 0:00:16]} 57. Rg2 {[%emt 0:01:59]} Ra1 {[%emt 0:01:16]} 58. Rc2 {[%emt 0:00:12]} Rg1+ {[%emt 0:00:27]} 59. Kf3 {[%emt 0:00:31]} Ra1 {[%emt 0:07:02]} 60. Rc6 {[%emt 0:01:22]} Ra3+ {[%emt 0:05:50]} 61. Kg4 {[%emt 0:00:57]} Ra5 {[%emt 0:00:24]} 62. Rf6 {[%emt 0:00:50]} Kg7 {[%emt 0:00:41]} 63. Re6 {[%emt 0:00:11]} Ra1 {[%emt 0:00:27]} 64. Rb6 {[%emt 0:01:08]} Rg1+ {[%emt 0:00:16]} 65. Kh3 {[%emt 0:00:38]} Rh1+ {[%emt 0:00:49]} 1/2-1/2

[Event "WYCC 2018 G16"]
[Site "Halkidiki"]
[Date "2018.10.21"]
[Round "3"]
[White "Akti, Ezgi"]
[Black "Ouellet, Maili-Jade"]
[Result "0-1"]
[ECO "B40"]
[WhiteElo "1643"]
[BlackElo "2122"]
[Annotator "NA"]
[PlyCount "116"]
[EventDate "2018.10.20"]
[EventType "swiss"]
[EventCountry "GRE"]
[SourceTitle "playchess.com"]
[Source "ChessBase"]
[SourceQuality "1"]
[TimeControl "40/5400+30:1800+30"]

1. e4 {[%emt 0:00:00]} c5 {[%emt 0:00:00]} 2. Nf3 {[%emt 0:00:00]} e6 {[%emt 0:00:00]} 3. c3 {[%emt 0:00:00]} d5 {[%emt 0:00:00]} 4. exd5 {[%emt 0:00:00]} Qxd5 {[%emt 0:00:00]} 5. d4 {[%emt 0:00:02]} Nf6 {[%emt 0:00:00]} 6. Bd3 {[%emt 0:00:19]} cxd4 {[%emt 0:00:14]} 7. cxd4 {[%emt 0:04:39]} Bb4+ {[%emt 0:00:06] B22: Sicilian: 2 c3} (7... Be7 8. Nc3 Qd6 9. O-O O-O 10. Qe2 Nc6 11. Rd1 b6 12. Nb5 Qd8 13. Ne5 Bb7 14. Bg5 g6 15. Rac1 Nb4 16. Bc4 Nbd5 17. Re1 a6 18. Nc3 b5 19. Bb3 Rc8 20. Bh6 Re8 21. Nxf7 Bb4 22. Nxd8 {1-0 (22) Kosteniuk,A (2541)-Ju,W (2568) Beijing 2014}) 8. Bd2 {[%emt 0:11:04]} Bxd2+ {[%emt 0:00:55]} 9. Qxd2 {[%emt 0:00:18]} O-O {[%emt 0:00:22]} 10. Nc3 {[%emt 0:00:28]} Qh5 {[%emt 0:02:41]} 11. O-O $146 {[%emt 0:01:50]} ({Predecessor:} 11. Ne5 Nd5 12. Nxd5 exd5 13. O-O f6 14. Be2 Qe8 15. Ng4 {½-½ (52) Rusche,J (2170)-Burschowsky,M (2214) Austria 2009}) 11... Nc6 {[%emt 0:00:46]} 12. a3 {[%emt 0:05:23]} Rd8 {[%emt 0:00:40]} 13. Rad1 {[%emt 0:02:53]} b6 {[%emt 0:01:01]} 14. Be2 {[%emt 0:04:35]} Qf5 {[%emt 0:08:45]} 15. Qc1 {[%emt 0:19:09]} Bb7 {[%emt 0:39:23]} 16. Nh4 {[%emt 0:03:52]} Qa5 {[%emt 0:03:47]} 17. b4 {[%emt 0:00:52]} Nxb4 {[%emt 0:01:05]} 18. axb4 {[%emt 0:00:01]} Qxb4 {[%emt 0:00:13]} 19. Na2 {[%emt 0:08:58]} Qa4 {[%emt 0:03:47]} 20. Qb2 {[%emt 0:01:25]} Rac8 {[%emt 0:04:05]} 21. Bb5 {[%emt 0:17:55]} Qa5 {[%emt 0:02:06]} 22. Rd3 {[%emt 0:01:53]} a6 {[%emt 0:05:15]} 23. Nc3 {[%emt 0:00:34]} Rxc3 {[%emt 0:03:18]} 24. Rxc3 {[%emt 0:00:24]} Qxb5 {[%emt 0:00:14]} 25. Qxb5 {[%emt 0:01:26]} axb5 {[%emt 0:00:06]} 26. Nf3 {[%emt 0:03:47]} Nd5 {[%emt 0:01:59]} 27. Rc2 {[%emt 0:02:54]} Ra8 {[%emt 0:01:15]} 28. h3 {[%emt 0:04:48]} f6 {[%emt 0:00:38]} 29. Re1 {[%emt 0:01:16]} Kf7 {[%emt 0:00:39]} 30. Nd2 {[%emt 0:01:09]} Ke7 {[%emt 0:00:56]} 31. Rb2 {[%emt 0:01:48]} b4 {[%emt 0:02:51]} 32. Nc4 {[%emt 0:00:42]} Ra4 {[%emt 0:02:35]} 33. Rc1 {[%emt 0:01:24]} Kd7 {[%emt 0:01:19]} 34. Ne3 {[%emt 0:00:32]} Nxe3 {[%emt 0:02:53]} 35. fxe3 {[%emt 0:00:01]} Bd5 {[%emt 0:00:14]} 36. e4 {[%emt 0:01:02]} Bxe4 {[%emt 0:00:24]} 37. Rc4 {[%emt 0:00:09]} Ra1+ {[%emt 0:00:32]} 38. Kf2 {[%emt 0:00:29]} b3 {[%emt 0:00:30]} 39. Rb4 {[%emt 0:00:14]} Bd5 {[%emt 0:01:04]} 40. Rxb6 {[%emt 0:00:00]} Kc7 {[%emt 0:00:00]} 41. Rb4 {[%emt 0:05:36]} Ra2 {[%emt 0:04:19]} 42. Re2 {[%emt 0:00:35]} h5 {[%emt 0:05:27]} 43. h4 {[%emt 0:02:27]} g5 {[%emt 0:00:59]} 44. g3 {[%emt 0:00:29]} gxh4 {[%emt 0:00:56]} 45. gxh4 {[%emt 0:00:01]} f5 {[%emt 0:01:00]} 46. Kf1 {[%emt 0:08:18]} Rxe2 {[%emt 0:01:00]} 47. Kxe2 {[%emt 0:00:01]} f4 {[%emt 0:00:18]} 48. Kd3 {[%emt 0:00:52]} f3 {[%emt 0:00:35]} 49. Ke3 {[%emt 0:00:17]} Kd6 {[%emt 0:00:42]} 50. Rb8 {[%emt 0:03:30]} Ke7 {[%emt 0:01:21]} 51. Rc8 {[%emt 0:01:06]} Kf6 {[%emt 0:00:25]} 52. Rg8 {[%emt 0:01:35]} e5 {[%emt 0:03:10]} 53. dxe5+ {[%emt 0:01:58]} Kxe5 {[%emt 0:00:14]} 54. Rd8 {[%emt 0:01:17]} Ke6 {[%emt 0:02:05]} 55. Kd3 {[%emt 0:04:27]} b2 {[%emt 0:06:19]} 56. Kc2 {[%emt 0:01:22]} f2 {[%emt 0:00:38]} 57. Rf8 {[%emt 0:00:15]} Be4+ {[%emt 0:00:09]} 58. Kxb2 {[%emt 0:00:04]} Bf5 {[%emt 0:00:06]} 0-1

[Event "WYCC 2018 G16"]
[Site "Halkidiki"]
[Date "2018.10.21"]
[Round "3"]
[White "De Freitas, Isabella Ribeiro Co"]
[Black "De Silva, Tenara"]
[Result "0-1"]
[ECO "A22"]
[WhiteElo "1605"]
[BlackElo "1927"]
[Annotator "NA"]
[PlyCount "146"]
[EventDate "2018.10.20"]
[EventType "swiss"]
[EventCountry "GRE"]
[SourceTitle "playchess.com"]
[Source "ChessBase"]
[SourceQuality "1"]
[TimeControl "40/5400+30:1800+30"]

1. c4 {[%emt 0:00:00]} Nf6 {[%emt 0:00:00]} 2. Nc3 {[%emt 0:00:00]} e5 {[%emt 0:00:00]} 3. g3 {[%emt 0:00:00]} Nc6 {[%emt 0:00:00]} 4. Bg2 {[%emt 0:00:09]} Bc5 {[%emt 0:01:15]} 5. a3 {[%emt 0:00:24]} a6 {[%emt 0:00:38]} 6. b4 {[%emt 0:00:33]} Bd4 {[%emt 0:00:31]} 7. Bb2 {[%emt 0:02:33]} d6 {[%emt 0:00:24]} 8. Nf3 {[%emt 0:01:08]} Ba7 {[%emt 0:00:53]} 9. O-O {[%emt 0:01:22]} Be6 {[%emt 0:00:13]} 10. d3 {[%emt 0:00:52]} O-O {[%emt 0:00:31]} 11. Ng5 {[%emt 0:03:50]} Rb8 {[%emt 0:01:41]} 12. Nxe6 {[%emt 0:01:28]} fxe6 {[%emt 0:00:07]} 13. e3 {[%emt 0:00:25]} Qd7 {[%emt 0:02:15]} 14. Ne4 {[%emt 0:04:06]} Nxe4 {[%emt 0:01:41]} 15. Bxe4 {[%emt 0:00:07]} Qf7 {[%emt 0:00:35]} 16. Rc1 {[%emt 0:03:29]} Ne7 {[%emt 0:02:33]} 17. c5 {[%emt 0:08:16]} Nf5 {[%emt 0:02:48]} 18. Qc2 {[%emt 0:12:52]} Qh5 {[%emt 0:03:56]} 19. d4 {[%emt 0:10:35]} exd4 {[%emt 0:02:00]} 20. exd4 {[%emt 0:02:25]} Qg4 {[%emt 0:07:36]} 21. Bxf5 {[%emt 0:10:11]} Rxf5 {[%emt 0:01:14]} 22. Rce1 {[%emt 0:02:36]} Qh3 {[%emt 0:03:20]} 23. Qe4 {[%emt 0:00:51]} Rf6 {[%emt 0:03:39]} 24. Re2 {[%emt 0:03:34]} d5 {[%emt 0:05:45]} 25. Qg2 {[%emt 0:05:29]} Qf5 {[%emt 0:00:28]} 26. Rfe1 {[%emt 0:00:44]} Rbf8 {[%emt 0:02:27]} 27. f4 {[%emt 0:07:01]} c6 {[%emt 0:01:55]} 28. Re5 {[%emt 0:00:40]} Qg6 {[%emt 0:00:12]} 29. Qh3 {[%emt 0:07:23]} Bb8 {[%emt 0:09:27]} 30. Rxe6 {[%emt 0:03:35]} Bxf4 {[%emt 0:00:44]} 31. Rxf6 {[%emt 0:02:05]} Rxf6 {[%emt 0:01:12]} 32. Qc8+ {[%emt 0:00:45]} Rf8 {[%emt 0:00:03]} 33. Qe6+ {[%emt 0:00:11]} Qxe6 {[%emt 0:00:08]} 34. Rxe6 {[%emt 0:00:03]} Bg5 {[%emt 0:00:52]} 35. h4 {[%emt 0:00:30]} Bf6 {[%emt 0:02:30]} 36. a4 {[%emt 0:02:03]} Kf7 {[%emt 0:01:04]} 37. Re1 {[%emt 0:03:15]} Kg6 {[%emt 0:02:08]} 38. Kg2 {[%emt 0:00:58]} Kf5 {[%emt 0:01:17]} 39. Kf3 {[%emt 0:01:04]} h5 {[%emt 0:01:40]} 40. Bc3 {[%emt 0:00:00]} g5 {[%emt 0:00:00]} 41. hxg5 {[%emt 0:04:28]} Kxg5 {[%emt 0:05:00]} 42. Bd2+ {[%emt 0:00:51]} Kg6 {[%emt 0:00:55]} 43. Ke3 {[%emt 0:04:37]} Re8+ {[%emt 0:00:27]} 44. Kd3 {[%emt 0:03:06]} Rxe1 {[%emt 0:00:03]} 45. Bxe1 {[%emt 0:00:05]} Kf5 {[%emt 0:00:03]} 46. Ke3 {[%emt 0:01:25]} Kg4 {[%emt 0:00:04]} 47. Kd3 {[%emt 0:06:06]} Bd8 {[%emt 0:00:32]} 48. b5 {[%emt 0:00:49]} axb5 {[%emt 0:00:24]} 49. axb5 {[%emt 0:00:55]} cxb5 {[%emt 0:00:09]} 50. Bf2 {[%emt 0:02:15]} Bc7 {[%emt 0:00:04]} 51. Kc3 {[%emt 0:00:08]} Kf3 {[%emt 0:00:51]} 52. g4 {[%emt 0:01:24]} hxg4 {[%emt 0:00:15]} 53. Bg1 {[%emt 0:00:07]} Ba5+ {[%emt 0:00:04]} 54. Kb3 {[%emt 0:02:08]} g3 {[%emt 0:00:16]} 55. Kb2 {[%emt 0:03:20]} Ke2 {[%emt 0:00:07]} 56. Kc2 {[%emt 0:00:13]} Kf1 {[%emt 0:00:05]} 57. Be3 {[%emt 0:00:13]} g2 {[%emt 0:00:02]} 58. c6 {[%emt 0:01:39]} bxc6 {[%emt 0:00:05]} 59. Kb3 {[%emt 0:00:58]} g1=Q {[%emt 0:00:19]} 60. Bxg1 {[%emt 0:00:14]} Kxg1 {[%emt 0:00:05]} 61. Kc2 {[%emt 0:00:11]} Kf2 {[%emt 0:00:04]} 62. Kd3 {[%emt 0:00:20]} b4 {[%emt 0:00:06]} 63. Kc2 {[%emt 0:00:04]} Ke3 {[%emt 0:00:03]} 64. Kb3 {[%emt 0:00:15]} Kxd4 {[%emt 0:00:04]} 65. Kc2 {[%emt 0:00:49]} c5 {[%emt 0:00:04]} 66. Kd2 {[%emt 0:00:14]} b3+ {[%emt 0:00:05]} 67. Kc1 {[%emt 0:00:04]} c4 {[%emt 0:00:02]} 68. Kd1 {[%emt 0:00:57]} c3 {[%emt 0:00:09]} 69. Kc1 {[%emt 0:00:09]} c2 {[%emt 0:00:07]} 70. Kb2 {[%emt 0:00:13]} Bd2 {[%emt 0:00:06]} 71. Kxb3 {[%emt 0:00:58]} c1=Q {[%emt 0:00:12]} 72. Ka2 {[%emt 0:00:12]} Bc3 {[%emt 0:00:08]} 73. Kb3 {[%emt 0:00:15]} Qb2+ {[%emt 0:00:04]} 0-1

[Event "WYCC 2018 G16"]
[Site "Halkidiki"]
[Date "2018.10.21"]
[Round "3"]
[White "Servin-Demarrais, Helena"]
[Black "Sankova, Stella"]
[Result "0-1"]
[ECO "B90"]
[WhiteElo "1540"]
[BlackElo "2051"]
[Annotator "NA"]
[PlyCount "96"]
[EventDate "2018.10.20"]
[EventType "swiss"]
[EventCountry "GRE"]
[SourceTitle "playchess.com"]
[Source "ChessBase"]
[SourceQuality "1"]
[TimeControl "40/5400+30:1800+30"]

1. e4 {[%emt 0:00:00]} c5 {[%emt 0:00:00]} 2. Nf3 {[%emt 0:00:00]} d6 {[%emt 0:00:00]} 3. d4 {[%emt 0:00:00]} cxd4 {[%emt 0:00:00]} 4. Nxd4 {[%emt 0:00:00]} Nf6 {[%emt 0:00:00]} 5. Nc3 {[%emt 0:00:00]} a6 {[%emt 0:00:00]} 6. f3 {[%emt 0:00:17]} e5 {[%emt 0:00:08]} 7. Nb3 {[%emt 0:00:16]} Be6 {[%emt 0:01:15]} 8. Be3 {[%emt 0:00:17]} h5 {[%emt 0:00:18]} 9. Qd2 {[%emt 0:00:45]} Nbd7 {[%emt 0:00:05]} 10. Be2 {[%emt 0:00:54]} Rc8 {[%emt 0:00:11]} 11. O-O {[%emt 0:02:12]} Be7 {[%emt 0:00:24]} 12. Nd5 {[%emt 0:01:12]} Bxd5 {[%emt 0:01:29]} 13. exd5 {[%emt 0:00:24]} Nb6 {[%emt 0:05:53]} 14. Bxb6 {[%emt 0:06:25]} Qxb6+ {[%emt 0:00:04]} 15. Kh1 {[%emt 0:00:15]} O-O {[%emt 0:01:04]} 16. c4 {[%emt 0:02:30]} h4 {[%emt 0:08:42]} 17. Bd3 {[%emt 0:27:01]} Nh5 {[%emt 0:07:28]} 18. Rae1 {[%emt 0:07:13]} g6 {[%emt 0:06:22]} 19. f4 {[%emt 0:06:42]} Bf6 {[%emt 0:02:06]} 20. fxe5 {[%emt 0:02:33]} Bxe5 {[%emt 0:01:13]} 21. c5 {[%emt 0:02:46]} Qc7 {[%emt 0:03:14]} 22. Qg5 {[%emt 0:08:43]} Bxb2 {[%emt 0:12:38]} 23. Re7 {[%emt 0:07:38]} Qd8 {[%emt 0:00:36]} 24. cxd6 {[%emt 0:16:05]} Qxd6 {[%emt 0:00:49]} 25. Rxb7 {[%emt 0:01:44]} Bf6 {[%emt 0:04:34]} 26. Qh6 {[%emt 0:01:40]} Bg7 {[%emt 0:03:04]} 27. Qg5 {[%emt 0:00:45]} h3 {[%emt 0:02:26]} 28. gxh3 {[%emt 0:01:28]} Bf6 {[%emt 0:01:20]} 29. Qg2 {[%emt 0:02:13]} Nf4 {[%emt 0:11:53]} 30. Qf3 {[%emt 0:00:40]} Nxd3 {[%emt 0:05:53]} 31. Qxf6 {[%emt 0:01:42]} Qxd5+ {[%emt 0:01:14]} 32. Qf3 {[%emt 0:00:08]} Qc4 {[%emt 0:02:10]} 33. Rd1 {[%emt 0:01:12]} Rcd8 {[%emt 0:04:26]} 34. Rf1 {[%emt 0:00:21]} Ne5 {[%emt 0:01:42]} 35. Qg2 {[%emt 0:00:30]} Rd3 {[%emt 0:03:36]} 36. Re1 {[%emt 0:00:47]} Nf3 {[%emt 0:01:49]} 37. Rf1 {[%emt 0:00:10]} Nh4 {[%emt 0:00:52]} 38. Qg4 {[%emt 0:00:49]} Qd5+ {[%emt 0:01:26]} 39. Kg1 {[%emt 0:00:22]} Qxb7 {[%emt 0:03:14]} 40. Qxh4 {[%emt 0:00:00]} Qb6+ {[%emt 0:00:00]} 41. Kh1 {[%emt 0:00:32]} Qe3 {[%emt 0:05:39]} 42. Re1 {[%emt 0:01:35]} Qxh3 {[%emt 0:02:54]} 43. Qxh3 {[%emt 0:00:14]} Rxh3 {[%emt 0:00:04]} 44. Nc5 {[%emt 0:00:19]} Ra3 {[%emt 0:00:44]} 45. Ra1 {[%emt 0:00:40]} Rc8 {[%emt 0:00:19]} 46. Nb3 {[%emt 0:01:08]} Rc2 {[%emt 0:00:25]} 47. Nd4 {[%emt 0:00:32]} Rcxa2 {[%emt 0:00:23]} 48. Rxa2 {[%emt 0:00:03]} Rxa2 {[%emt 0:00:07]} 0-1

[Event "WYCC 2018 G16"]
[Site "Halkidiki"]
[Date "2018.10.21"]
[Round "3"]
[White "Sild, Marta Pauliine"]
[Black "Skaslien, Ingrid"]
[Result "0-1"]
[ECO "B07"]
[WhiteElo "1394"]
[BlackElo "1885"]
[Annotator "NA"]
[PlyCount "140"]
[EventDate "2018.10.20"]
[EventType "swiss"]
[EventCountry "GRE"]
[SourceTitle "playchess.com"]
[Source "ChessBase"]
[SourceQuality "1"]
[TimeControl "40/5400+30:1800+30"]

1. e4 {[%emt 0:00:00]} d6 {[%emt 0:00:00]} 2. d4 {[%emt 0:00:00]} Nf6 {[%emt 0:00:00]} 3. Nc3 {[%emt 0:00:00]} Nbd7 {[%emt 0:00:13]} 4. f4 {[%emt 0:00:28]} e5 {[%emt 0:00:23]} 5. Nf3 {[%emt 0:01:05]} exd4 {[%emt 0:02:46]} 6. Nxd4 {[%emt 0:00:12]} g6 {[%emt 0:01:21] B07: Pirc Defence: Miscellaneous Systems} 7. Bd3 {[%emt 0:00:53]} (7. Be2 Bg7 8. O-O O-O 9. Bf3 Re8 10. h3 c6 11. Kh1 Qc7 12. a4 a5 13. b3 Nc5 14. Re1 {0-1 (30) Volokitin,A (2628)-Bortnyk,O (2610) Riadh 2017}) 7... Bg7 {[%emt 0:01:03]} 8. O-O {[%emt 0:01:07]} Nc5 {[%emt 0:09:37]} 9. Nf3 {[%emt 0:05:04]} O-O {[%emt 0:04:29]} 10. h3 $146 {[%emt 0:08:08]} ({Predecessor:} 10. Qe1 Re8 11. Qh4 Nxd3 12. cxd3 Nh5 13. Qf2 f5 14. Re1 {1-0 (45) Lutz,K (2286)-Hauke,C (2192) Germany 2015}) 10... Re8 {[%emt 0:05:27]} 11. Re1 {[%emt 0:04:57]} Be6 {[%emt 0:15:20]} 12. Ng5 {[%emt 0:12:13]} h6 {[%emt 0:06:40]} 13. Nxe6 {[%emt 0:04:51]} Nxe6 {[%emt 0:04:24]} 14. Qf3 {[%emt 0:05:18]} Nd4 {[%emt 0:09:15]} 15. Qg3 {[%emt 0:05:15]} Nd7 {[%emt 0:02:14]} 16. f5 {[%emt 0:12:07]} Ne5 {[%emt 0:02:44]} 17. fxg6 {[%emt 0:01:07]} fxg6 {[%emt 0:04:38]} 18. Rf1 {[%emt 0:05:04]} Rf8 {[%emt 0:02:42]} 19. Bf4 {[%emt 0:04:14]} Kh7 {[%emt 0:00:47]} 20. Rad1 {[%emt 0:02:41]} c6 {[%emt 0:04:04]} 21. Be3 {[%emt 0:01:40]} Nxd3 {[%emt 0:03:37]} 22. cxd3 {[%emt 0:00:19]} Qe7 {[%emt 0:01:34]} 23. Rxf8 {[%emt 0:02:57]} Rxf8 {[%emt 0:00:11]} 24. Rf1 {[%emt 0:00:19]} Be5 {[%emt 0:02:50]} 25. Qg4 {[%emt 0:03:17]} h5 {[%emt 0:03:14]} 26. Qd1 {[%emt 0:01:17]} Rf7 {[%emt 0:03:12]} 27. b3 {[%emt 0:04:32]} b6 {[%emt 0:02:48]} 28. Ne2 {[%emt 0:01:14]} Rxf1+ {[%emt 0:00:53]} 29. Kxf1 {[%emt 0:00:26]} Qf6+ {[%emt 0:00:25]} 30. Kg1 {[%emt 0:00:36]} Nxe2+ {[%emt 0:00:40]} 31. Qxe2 {[%emt 0:00:05]} Bd4 {[%emt 0:00:50]} 32. Bxd4 {[%emt 0:00:43]} Qxd4+ {[%emt 0:00:02]} 33. Kf1 {[%emt 0:00:36]} Kg7 {[%emt 0:00:59]} 34. Qc2 {[%emt 0:01:17]} c5 {[%emt 0:00:39]} 35. Ke2 {[%emt 0:01:10]} Kf6 {[%emt 0:02:21]} 36. Qd2 {[%emt 0:01:01]} Qe5 {[%emt 0:01:03]} 37. Kf3 {[%emt 0:02:00]} g5 {[%emt 0:01:15]} 38. Qc1 {[%emt 0:02:40]} h4 {[%emt 0:01:36]} 39. Ke2 {[%emt 0:01:50]} Ke7 {[%emt 0:02:13]} 40. Kd1 {[%emt 0:00:00]} Qg3 {[%emt 0:00:00]} 41. Qd2 {[%emt 0:02:47]} Ke6 {[%emt 0:04:57]} 42. Qc2 {[%emt 0:02:51]} Qe3 {[%emt 0:06:10]} 43. Qd2 {[%emt 0:06:17]} Qg3 {[%emt 0:05:24]} 44. Qe2 {[%emt 0:00:50]} Ke5 {[%emt 0:01:28]} 45. Kd2 {[%emt 0:07:30]} Kd4 {[%emt 0:03:59]} 46. Kc2 {[%emt 0:00:13]} a6 {[%emt 0:01:07]} 47. Qf1 {[%emt 0:00:35] [#]} Ke3 $1 {[%emt 0:00:49]} 48. Kc3 {[%emt 0:01:49]} b5 {[%emt 0:01:50]} 49. a3 {[%emt 0:04:51]} a5 {[%emt 0:02:47]} 50. a4 {[%emt 0:02:34]} b4+ {[%emt 0:01:59]} 51. Kc4 {[%emt 0:00:17]} Kd2 {[%emt 0:04:04]} 52. Qb1 {[%emt 0:03:36]} Qe5 {[%emt 0:00:39]} 53. Kb5 {[%emt 0:00:48]} Qc3 {[%emt 0:00:35]} 54. Kxa5 {[%emt 0:00:34]} Qxd3 {[%emt 0:00:22]} 55. Qxd3+ {[%emt 0:00:13]} Kxd3 {[%emt 0:00:03]} 56. Kb6 {[%emt 0:00:08]} c4 {[%emt 0:00:18]} 57. a5 {[%emt 0:00:22]} cxb3 {[%emt 0:00:10]} 58. a6 {[%emt 0:00:06]} b2 {[%emt 0:00:05]} 59. a7 {[%emt 0:00:09]} b1=Q {[%emt 0:00:05]} 60. a8=Q {[%emt 0:00:07]} Qg1+ {[%emt 0:00:38]} 61. Kc7 {[%emt 0:02:31]} Qxg2 {[%emt 0:01:34]} (61... Qc5+ $142 62. Kd7 b3) 62. Qd5+ {[%emt 0:00:32]} Ke3 {[%emt 0:01:00]} 63. Kxd6 {[%emt 0:01:29]} Qd2 {[%emt 0:01:33]} (63... Qxe4 $142 64. Qa2 Qd3+ 65. Ke7 b3) 64. e5 {[%emt 0:01:12]} Qxd5+ {[%emt 0:00:48]} 65. Kxd5 {[%emt 0:00:08]} b3 {[%emt 0:00:17]} 66. e6 {[%emt 0:00:07]} b2 {[%emt 0:00:01]} 67. e7 {[%emt 0:00:06]} b1=Q {[%emt 0:00:03]} 68. e8=Q+ {[%emt 0:00:07]} Kf3 {[%emt 0:00:52]} 69. Qh5+ {[%emt 0:00:44]} Kf2 {[%emt 0:00:41]} 70. Qxg5 {[%emt 0:01:36]} Qb5+ {[%emt 0:00:14]} 0-1